lending/lending_fUSD_20240809
["ID","MTS","AMOUNT","RATE_DAILY","PERIOD"]
[334527012,1723174231893,-450.50241639,0.00015,2]
[334527013,1723174231904,-149.49758361,0.00015,2]
[334527014,1723174231914,-186.43181631,0.00017,2]
[334527015,1723174231927,-348.89010204,0.00017,2]
[334527016,1723174231939,-114.67808165,0.00017,2]
[334527017,1723174231953,-150.0,0.00017259,2]
[334527018,1723174231963,-134.44854713,0.0001726,2]
[334527019,1723174231975,-16.54145287,0.0001726,2]
[334527020,1723174231984,-499.99,0.0001726,2]
[334527021,1723174231994,-210.20481617,0.0001726,2]
[334527022,1723174232018,-2889.96806604,0.0001726,2]
[334527023,1723174232030,-350.0,0.0001726,2]
[334527024,1723174232041,-522.58091288,0.0001726,2]
[334527025,1723174232052,-777.94620491,0.0001726,2]
[334527026,1723174232063,-486.13,0.0001726,2]
[334527027,1723174232076,-299.99,0.0001726,4]
[334527028,1723174232086,-233.33928186,0.0001811,2]
[334527029,1723174232098,-610.49071814,0.0001811,2]
[334527030,1723174232108,-2299.62,0.00018998,2]
[334527031,1723174232117,-435.56751247,0.00018998,2]
[334527056,1723174239246,-1009.54248753,0.00018998,2]
[334527057,1723174239256,-700.0,0.00019,2]
[334527058,1723174239266,-155.0,0.00019045,2]
[334527059,1723174239275,-243.02151724,0.0001924,2]
[334527060,1723174239285,-155.0,0.00019387,2]
[334527061,1723174239294,-428.093457,0.00019398,2]
[334527062,1723174239306,-10.71722754,0.00019398,2]
[334527063,1723174239316,-434.62368732,0.00019442,2]
[334527064,1723174239483,-212.75631268,0.00019442,2]
[334527065,1723174239492,-252.32034472,0.00019445,2]
[334527066,1723174239503,-1652.58965528,0.00019445,2]
[334527067,1723174239513,-155.0,0.00019451,2]
[334527068,1723174239522,-1286.22,0.00019536,2]
[334527069,1723174239532,-150.0,0.00019642,2]
[334527070,1723174239541,-306.72174365,0.00019725,2]
[334527071,1723174239551,-347.84205069,0.00019899,2]
[334527072,1723174239560,-2862.10250956,0.0002,3]
[334527073,1723174239571,-1328.83403623,0.0002,3]
[334527074,1723174239582,-8662.22964691,0.0002,3]
[334527075,1723174239592,-500.0,0.00020109,2]
[334527076,1723174239602,-23900.0,0.00020113,2]
[334527077,1723174239611,-155.0,0.0002012,2]
[334527078,1723174239620,-924.44,0.00020149,2]
[334527079,1723174239630,-414.72232741,0.00020191,2]
[334527080,1723174239639,-4581.85747888,0.00020351,2]
[334527081,1723174239648,-843.83,0.00020374,2]
[334527082,1723174239657,-526.51912142,0.0002038,2]
[334527083,1723174239667,-526.51912142,0.0002038,2]
[334527084,1723174239676,-6538.45,0.00020382,2]
[334527085,1723174239685,-2540.88,0.00020382,2]
[334527086,1723174239695,-250.0,0.00020408,2]
[334527087,1723174239705,-500.0,0.00020413,2]
[334527088,1723174239714,-1000.0,0.00020474,2]
[334527089,1723174239724,-1182.73650385,0.00020551,2]
[334527090,1723174239736,-6068.56335205,0.00020551,2]
[334527091,1723174239747,-846.58315671,0.00020551,2]
[334527092,1723174239758,-653.05692207,0.00020551,2]
[334527094,1723174239769,-8508.30006532,0.00020551,2]
[334527095,1723174239778,-211.77,0.00020555,2]
[334527096,1723174239787,-250.0,0.00020583,2]
[334527097,1723174239796,-178.9,0.00020623,2]
[334527098,1723174239806,-2000.0,0.00020658,2]
[334527099,1723174239815,-530.9531837,0.00020831,2]
[334527100,1723174239824,-3606.99,0.00020999,2]
[334527102,1723174239833,-150.0,0.00021674,2]
[334527104,1723174239842,-170.52,0.00021772,2]
[334527106,1723174239852,-833.14438295,0.00022481,4]
[334527108,1723174239861,-843.83,0.00022638,2]
[334527110,1723174239870,-1000.0,0.00023033,2]
[334527112,1723174239880,-180.0,0.00023205,2]
[334527114,1723174239889,-546.63032858,0.00023451,2]
[334527116,1723174239899,-390.17,0.00023464,3]
[334527118,1723174239908,-195.09,0.00023464,3]
[334527120,1723174239917,-585.28,0.00023464,3]
[334527122,1723174239926,-834.308093,0.00023474,2]
[334527124,1723174239935,-590.968232,0.00023474,2]
[334527125,1723174239945,-1867.43311391,0.00023474,2]
[334527187,1723174241185,-920.250973,0.00023474,2]
[334527188,1723174241199,-2540.88009209,0.00023474,2]
[334527189,1723174241215,-8848.62283116,0.00023474,2]
[334527190,1723174241237,-504.3514221,0.00023474,2]
[334527191,1723174241249,-9292.06969774,0.00023474,2]
[334527192,1723174241259,-259.869492,0.00023474,2]
[334527193,1723174241268,-4760.569648,0.00023474,2]
[334527194,1723174241278,-4283.322823,0.00023474,2]
[334527195,1723174241288,-159.738962,0.00023474,2]
[334527196,1723174241297,-204.243585,0.00023474,2]
[334527197,1723174241306,-3095.429191,0.00023474,2]
[334527198,1723174241316,-450.645315,0.00023474,2]
[334527199,1723174241325,-2214.956325,0.00023474,2]
[334527200,1723174241335,-2569.820772,0.00023474,2]
[334527201,1723174241343,-3452.9357123,0.00023668,2]
[334527202,1723174241359,-918.64433405,0.00023668,2]
[334527203,1723174241368,-2801.05749276,0.00023749,2]
[334527205,1723174241379,-1570.52255352,0.00023749,2]
[334527207,1723174241389,-3011.50540482,0.00023753,10]
[334527210,1723174241400,-333.95334336,0.00023753,10]
[334527212,1723174241411,-2597.56225702,0.00023753,10]
[334527214,1723174241424,-40.9712948,0.00023753,10]
[334527216,1723174241433,-834.308093,0.00023768,2]
[334527218,1723174241442,-434.0673621,0.00023768,2]
[334527220,1723174241456,-156.9008699,0.00023768,2]
[334527222,1723174241466,-1025.8991301,0.00023768,2]
[334527224,1723174241479,-4302.6650489,0.00023768,2]
[334527225,1723174241488,-9846.96647103,0.00023768,2]
[334527227,1723174241499,-8798.07747997,0.00023768,2]
[334527229,1723174241508,-259.869492,0.00023768,2]
[334527231,1723174241521,-4760.569648,0.00023768,2]
[334527233,1723174241530,-4283.322823,0.00023768,2]
[334527235,1723174241539,-3095.429191,0.00023768,2]
[334527236,1723174241547,-450.645315,0.00023768,2]
[334527238,1723174241559,-2214.956325,0.00023768,2]
[334527240,1723174241568,-2569.820772,0.00023768,2]
[334527243,1723174241578,-1615.67307867,0.00023809,2]
[334527245,1723174241588,-3764.2521,0.00023809,2]
[334527247,1723174241597,-1286.9488,0.00023809,2]
[334527249,1723174241609,-27368.9799,0.00023809,2]
[334527251,1723174241618,-195.556,0.00023809,2]
[334527253,1723174241627,-1000.0,0.00023809,2]
[334527255,1723174241636,-2500.0,0.00023809,2]
[334527257,1723174241646,-4371.58004628,0.00023831,2]
[334527259,1723174241656,-1950.02982053,0.00023873,2]
[334527261,1723174241665,-370.496253,0.00023873,2]
[334527263,1723174241674,-370.496253,0.00023873,2]
[334527265,1723174241683,-15655.23386064,0.0002388,2]
[334527267,1723174241693,-1615.67307861,0.00023893,2]
[334527269,1723174241704,-500.0,0.00023908,2]
[334527271,1723174241713,-500.0,0.00023908,2]
[334527273,1723174241722,-500.0,0.00023908,2]
[334527274,1723174241731,-500.0,0.00023908,2]
[334527276,1723174241741,-500.0,0.00023908,2]
[334527278,1723174241750,-592.61955827,0.00023908,2]
[334527281,1723174241761,-297.47046944,0.00023908,2]
[334527283,1723174241771,-547.16513421,0.00023909,2]
[334527285,1723174241782,-14151.6502,0.00023909,2]
[334527287,1723174241791,-183243.3864,0.00023909,2]
[334527289,1723174241801,-500.0,0.00023909,2]
[334527291,1723174241811,-819.2305,0.00023909,2]
[334527293,1723174241821,-1000.0,0.00023909,2]
[334527295,1723174241830,-297.0689,0.00023909,2]
[334527297,1723174241840,-175.9739,0.00023909,2]
[334527298,1723174241849,-2994.1718,0.00023909,2]
[334527300,1723174241858,-4371.58004628,0.00023912,2]
[334527302,1723174241868,-547.1651342,0.00023959,2]
[334527304,1723174241877,-1615.67307861,0.00023978,2]
[334527306,1723174241887,-4371.58004628,0.00023993,2]
[334527308,1723174241897,-152.05,0.00023999,2]
[334527310,1723174241906,-152.05,0.00023999,2]
[334527312,1723174241916,-152.05,0.00023999,2]
[334527313,1723174241925,-4521.20562421,0.00024,2]
[334527315,1723174241934,-1007.0,0.00024,12]
[334527317,1723174241943,-1000.0,0.00024,15]
[334527319,1723174241954,-1000.0,0.00024,17]
[334527321,1723174241963,-1000.0,0.00024,13]
[334527323,1723174241972,-1000.0,0.00024,12]
[334527325,1723174241982,-1000.0,0.00024,18]
[334527327,1723174241991,-1000.0,0.00024,11]
[334527329,1723174242000,-1000.0,0.00024,17]
[334527331,1723174242010,-1850.72072387,0.00024006,2]
[334527333,1723174242019,-495.40063286,0.00024009,2]
[334527335,1723174242028,-173.72523514,0.00024009,2]
[334527337,1723174242038,-381.71721631,0.00024009,2]
[334527339,1723174242048,-547.1651342,0.00024009,2]
[334527341,1723174242057,-39139.1824,0.00024009,2]
[334527342,1723174242067,-100000.0,0.00024009,2]
[334527344,1723174242076,-245000.0,0.00024009,2]
[334527346,1723174242086,-16681.0673,0.00024009,2]
[334527348,1723174242096,-5021.3695,0.00024009,2]
[334527350,1723174242105,-1415.3231,0.00024009,2]
[334527359,1723174242294,-150.0,0.00024041,2]
[334527360,1723174242305,-834.308093,0.00024061,2]
[334527361,1723174242314,-590.968232,0.00024061,2]
[334527362,1723174242324,-5328.564179,0.00024061,2]
[334527363,1723174242333,-18645.043951,0.00024061,2]
[334527364,1723174242342,-259.869492,0.00024061,2]
[334527365,1723174242351,-4760.569648,0.00024061,2]
[334527366,1723174242360,-4283.322823,0.00024061,2]
[334527367,1723174242371,-3095.429191,0.00024061,2]
[334527368,1723174242381,-450.645315,0.00024061,2]
[334527370,1723174242391,-2214.956325,0.00024061,2]
[334527371,1723174242400,-2569.820772,0.00024061,2]
[334527373,1723174242409,-1615.67307861,0.00024062,2]
[334527375,1723174242418,-495.40063286,0.00024074,2]
[334527377,1723174242428,-4371.58004628,0.00024075,2]
[334527379,1723174242437,-150.0,0.00024082,4]
[334527381,1723174242446,-152.05,0.0002409,2]
[334527383,1723174242456,-152.05,0.00024099,2]
[334527385,1723174242466,-116073.31847913,0.000241,5]
[334527387,1723174242478,-11104.32434322,0.00024106,2]
[334527389,1723174242488,-7454.29929259,0.00024109,9]
[334527391,1723174242497,-500.0,0.00024109,5]
[334527393,1723174242507,-500.0,0.00024109,5]
[334527395,1723174242517,-500.0,0.00024109,5]
[334527397,1723174242527,-500.0,0.00024109,5]
[334527398,1723174242537,-500.0,0.00024109,5]
[334527400,1723174242546,-500.0,0.00024109,5]
[334527402,1723174242556,-500.0,0.00024109,5]
[334527404,1723174242566,-500.0,0.00024109,5]
[334527406,1723174242575,-393.67967674,0.00024109,5]
[334527408,1723174242585,-500.0,0.00024109,5]
[334527410,1723174242594,-500.0,0.00024109,5]
[334527412,1723174242603,-521.69673044,0.00024109,5]
[334527414,1723174242612,-500.0,0.00024109,5]
[334527417,1723174242621,-503.56903771,0.00024109,5]
[334527419,1723174242631,-224.22101033,0.00024109,5]
[334527421,1723174242640,-500.0,0.00024109,5]
[334527423,1723174242650,-501.88997981,0.00024109,5]
[334527425,1723174242659,-533.83490057,0.00024109,5]
[334527427,1723174242668,-500.0,0.00024109,5]
[334527429,1723174242678,-500.0,0.00024109,5]
[334527431,1723174242687,-500.0,0.00024109,5]
[334527433,1723174242696,-500.0,0.00024109,5]
[334527434,1723174242714,-208.32071923,0.00024109,5]
[334527436,1723174242724,-500.0,0.00024109,5]
[334527438,1723174242733,-500.0,0.00024109,5]
[334527441,1723174242742,-511.58751272,0.00024109,5]
[334527444,1723174242751,-279.37889359,0.00024109,5]
[334527447,1723174242760,-500.0,0.00024109,5]
[334527450,1723174242769,-500.0,0.00024109,5]
[334527453,1723174242778,-500.0,0.00024109,5]
[334527455,1723174242788,-500.0,0.00024109,5]
[334527458,1723174242797,-500.0,0.00024109,5]
[334527460,1723174242806,-169.57,0.00024109,5]
[334527462,1723174242815,-500.0,0.00024109,5]
[334527464,1723174242824,-500.0,0.00024109,5]
[334527466,1723174242833,-500.0,0.00024109,5]
[334527468,1723174242842,-500.0,0.00024109,5]
[334527470,1723174242851,-500.0,0.00024109,5]
[334527471,1723174242861,-500.0,0.00024109,5]
[334527473,1723174242870,-500.0,0.00024109,5]
[334527475,1723174242880,-500.0,0.00024109,5]
[334527477,1723174242890,-514.29090475,0.00024109,5]
[334527479,1723174242900,-500.0,0.00024109,5]
[334527481,1723174242910,-500.0,0.00024109,5]
[334527483,1723174242920,-500.0,0.00024109,5]
[334527486,1723174242930,-500.0,0.00024109,5]
[334527488,1723174242941,-500.0,0.00024109,5]
[334527490,1723174242950,-500.0,0.00024109,5]
[334527492,1723174242960,-500.0,0.00024109,5]
[334527494,1723174242969,-500.0,0.00024109,5]
[334527496,1723174242979,-175.81814354,0.00024109,5]
[334527498,1723174242989,-500.0,0.00024109,5]
[334527500,1723174242998,-500.0,0.00024109,5]
[334527502,1723174243008,-500.977106,0.00024109,5]
[334527504,1723174243018,-500.0,0.00024109,5]
[334527506,1723174243027,-500.0,0.00024109,5]
[334527508,1723174243037,-500.0,0.00024109,5]
[334527510,1723174243047,-500.0,0.00024109,5]
[334527512,1723174243057,-500.0,0.00024109,5]
[334527514,1723174243067,-500.0,0.00024109,5]
[334527516,1723174243077,-500.0,0.00024109,5]
[334527518,1723174243086,-507.57203858,0.00024109,5]
[334527520,1723174243095,-500.84926239,0.00024109,5]
[334527522,1723174243105,-562.83,0.00024109,5]
[334527524,1723174243119,-500.0,0.00024109,5]
[334527526,1723174243129,-500.0,0.00024109,5]
[334527528,1723174243139,-500.0,0.00024109,5]
[334527530,1723174243148,-501.58768808,0.00024109,5]
[334527532,1723174243158,-500.0,0.00024109,5]
[334527534,1723174243168,-408.2382724,0.00024109,5]
[334527536,1723174243179,-500.0,0.00024109,5]
[334527538,1723174243189,-500.0,0.00024109,5]
[334527540,1723174243199,-504.11661483,0.00024109,5]
[334527542,1723174243210,-500.0,0.00024109,5]
[334527544,1723174243220,-500.0,0.00024109,5]
[334527546,1723174243229,-500.0,0.00024109,5]
[334527548,1723174243241,-500.0,0.00024109,5]
[334527550,1723174243251,-500.0,0.00024109,5]
[334527552,1723174243261,-500.0,0.00024109,5]
[334527554,1723174243271,-500.0,0.00024109,5]
[334527556,1723174243281,-637.36267935,0.00024109,5]
[334527558,1723174243291,-500.0,0.00024109,5]
[334527561,1723174243301,-204.24467621,0.00024109,5]
[334527563,1723174243313,-1807.21,0.00024109,5]
[334527565,1723174243322,-1807.21,0.00024109,5]
[334527567,1723174243333,-1807.21,0.00024109,5]
[334527569,1723174243343,-500.0,0.00024109,5]
[334527571,1723174243354,-500.0,0.00024109,5]
[334527573,1723174243365,-500.0,0.00024109,5]
[334527575,1723174243375,-501.80667075,0.00024109,5]
[334527577,1723174243385,-502.01448593,0.00024109,5]
[334527579,1723174243395,-500.0,0.00024109,5]
[334527582,1723174243405,-500.0,0.00024109,5]
[334527585,1723174243415,-500.0,0.00024109,5]
[334527588,1723174243425,-500.0,0.00024109,5]
[334527590,1723174243435,-165.27862783,0.00024109,5]
[334527592,1723174243445,-860.19,0.00024109,5]
[334527594,1723174243455,-860.19,0.00024109,5]
[334527596,1723174243465,-860.19,0.00024109,5]
[334527598,1723174243477,-500.0,0.00024109,5]
[334527600,1723174243487,-500.0,0.00024109,5]
[334527602,1723174243496,-500.0,0.00024109,5]
[334527604,1723174243506,-500.0,0.00024109,5]
[334527606,1723174243515,-500.0,0.00024109,5]
[334527609,1723174243526,-619.31143281,0.00024109,5]
[334527611,1723174243537,-734.23,0.00024109,5]
[334527613,1723174243546,-734.23,0.00024109,5]
[334527615,1723174243558,-734.23,0.00024109,5]
[334527617,1723174243568,-501.29547545,0.00024109,5]
[334527619,1723174243577,-500.57987961,0.00024109,5]
[334527621,1723174243587,-591.16,0.00024109,5]
[334527622,1723174243597,-500.0,0.00024109,5]
[334527625,1723174243607,-591.16,0.00024109,5]
[334527627,1723174243617,-500.0,0.00024109,5]
[334527629,1723174243626,-500.0,0.00024109,5]
[334527631,1723174243636,-591.16,0.00024109,5]
[334527633,1723174243646,-500.0,0.00024109,5]
[334527635,1723174243655,-500.0,0.00024109,5]
[334527637,1723174243665,-500.0,0.00024109,5]
[334527638,1723174243680,-537.19165266,0.00024109,5]
[334527640,1723174243690,-850.23,0.00024109,5]
[334527641,1723174243699,-850.23,0.00024109,5]
[334527643,1723174243710,-850.23,0.00024109,5]
[334527645,1723174243719,-500.0,0.00024109,5]
[334527647,1723174243730,-1017.49,0.00024109,5]
[334527649,1723174243740,-1017.49,0.00024109,5]
[334527651,1723174243750,-1017.49,0.00024109,5]
[334527653,1723174243761,-1570.95,0.00024109,5]
[334527655,1723174243772,-1570.95,0.00024109,5]
[334527657,1723174243783,-1570.95,0.00024109,5]
[334527659,1723174243793,-500.55096865,0.00024109,5]
[334527662,1723174243806,-502.10554902,0.00024109,5]
[334527664,1723174243817,-500.0,0.00024109,5]
[334527666,1723174243826,-500.0,0.00024109,5]
[334527668,1723174243836,-500.0,0.00024109,5]
[334527670,1723174243847,-501.81075552,0.00024109,5]
[334527672,1723174243857,-546.65,0.00024109,5]
[334527673,1723174243867,-546.65,0.00024109,5]
[334527675,1723174243877,-546.65,0.00024109,5]
[334527677,1723174243886,-500.0,0.00024109,5]
[334527679,1723174243895,-500.0,0.00024109,5]
[334527681,1723174243905,-2224.33,0.00024109,5]
[334527683,1723174243914,-500.0,0.00024109,5]
[334527685,1723174243924,-2224.33,0.00024109,5]
[334527687,1723174243933,-2224.33,0.00024109,5]
[334527689,1723174243942,-500.0,0.00024109,5]
[334527691,1723174243951,-500.0,0.00024109,5]
[334527693,1723174243962,-500.0,0.00024109,5]
[334527695,1723174243978,-500.52994997,0.00024109,5]
[334527696,1723174243987,-500.0,0.00024109,5]
[334527698,1723174243997,-519.25256844,0.00024109,5]
[334527700,1723174244006,-500.0,0.00024109,5]
[334527702,1723174244015,-500.0,0.00024109,5]
[334527704,1723174244025,-501.22080292,0.00024109,5]
[334527706,1723174244034,-500.0,0.00024109,5]
[334527708,1723174244044,-500.0,0.00024109,5]
[334527710,1723174244053,-500.0,0.00024109,5]
[334527712,1723174244063,-500.63594725,0.00024109,5]
[334527714,1723174244072,-909.88,0.00024109,5]
[334527716,1723174244081,-500.0,0.00024109,5]
[334527717,1723174244090,-500.0,0.00024109,5]
[334527719,1723174244100,-909.88,0.00024109,5]
[334527721,1723174244109,-500.0,0.00024109,5]
[334527723,1723174244119,-909.88,0.00024109,5]
[334527725,1723174244128,-501.62765879,0.00024109,5]
[334527727,1723174244138,-500.0,0.00024109,5]
[334527729,1723174244148,-1097.57,0.00024109,5]
[334527731,1723174244157,-1097.57,0.00024109,5]
[334527733,1723174244166,-1097.57,0.00024109,5]
[334527735,1723174244176,-628.65796912,0.00024109,5]
[334527737,1723174244185,-501.74037009,0.00024109,5]
[334527739,1723174244194,-500.0,0.00024109,5]
[334527741,1723174244203,-2336.6,0.00024109,5]
[334527743,1723174244213,-500.0,0.00024109,5]
[334527745,1723174244223,-2336.6,0.00024109,5]
[334527747,1723174244232,-500.0,0.00024109,5]
[334527749,1723174244241,-2336.6,0.00024109,5]
[334527751,1723174244250,-500.0,0.00024109,5]
[334527753,1723174244260,-500.0,0.00024109,5]
[334527755,1723174244269,-500.0,0.00024109,5]
[334527756,1723174244278,-500.0,0.00024109,5]
[334527758,1723174244287,-500.0,0.00024109,5]
[334527760,1723174244296,-500.0,0.00024109,5]
[334527762,1723174244306,-500.0,0.00024109,5]
[334527764,1723174244314,-472.46690805,0.00024109,5]
[334527766,1723174244324,-1613.44,0.00024109,5]
[334527768,1723174244334,-1613.44,0.00024109,5]
[334527770,1723174244343,-1613.44,0.00024109,5]
[334527772,1723174244352,-1613.44,0.00024109,5]
[334527774,1723174244361,-1613.44,0.00024109,5]
[334527776,1723174244371,-705.39,0.00024109,5]
[334527778,1723174244381,-705.39,0.00024109,5]
[334527780,1723174244389,-705.39,0.00024109,5]
[334527782,1723174244398,-501.3058253,0.00024109,5]
[334527784,1723174244408,-500.2060067,0.00024109,5]
[334527786,1723174244418,-501.80284095,0.00024109,5]
[334527788,1723174244428,-741.44,0.00024109,5]
[334527790,1723174244437,-741.44,0.00024109,5]
[334527791,1723174244447,-741.44,0.00024109,5]
[334527793,1723174244457,-741.44,0.00024109,5]
[334527795,1723174244466,-741.44,0.00024109,5]
[334527797,1723174244478,-500.16106579,0.00024109,5]
[334527799,1723174244489,-968.06,0.00024109,5]
[334527801,1723174244498,-968.06,0.00024109,5]
[334527803,1723174244509,-968.06,0.00024109,5]
[334527805,1723174244521,-500.0,0.00024109,5]
[334527807,1723174244530,-500.0,0.00024109,5]
[334527809,1723174244540,-500.0,0.00024109,5]
[334527811,1723174244551,-1416.26,0.00024109,5]
[334527814,1723174244562,-1416.26,0.00024109,5]
[334527816,1723174244572,-1416.26,0.00024109,5]
[334527818,1723174244583,-1480.02,0.00024109,5]
[334527820,1723174244593,-500.0,0.00024109,5]
[334527822,1723174244604,-500.0,0.00024109,5]
[334527824,1723174244616,-1480.02,0.00024109,5]
[334527826,1723174244626,-500.0,0.00024109,5]
[334527828,1723174244634,-1480.02,0.00024109,5]
[334527830,1723174244643,-500.0,0.00024109,5]
[334527832,1723174244652,-500.0,0.00024109,5]
[334527834,1723174244662,-196.09009774,0.00024109,5]
[334527836,1723174244671,-880.06,0.00024109,5]
[334527838,1723174244680,-880.06,0.00024109,5]
[334527840,1723174244690,-880.06,0.00024109,5]
[334527842,1723174244699,-880.06,0.00024109,5]
[334527844,1723174244711,-880.06,0.00024109,5]
[334527846,1723174244721,-500.86149677,0.00024109,5]
[334527848,1723174244731,-500.50159093,0.00024109,5]
[334527850,1723174244740,-500.35838121,0.00024109,5]
[334527852,1723174244749,-1480.14,0.00024109,5]
[334527854,1723174244758,-1480.14,0.00024109,5]
[334527856,1723174244768,-1480.14,0.00024109,5]
[334527858,1723174244777,-500.0,0.00024109,5]
[334527860,1723174244786,-500.0,0.00024109,5]
[334527861,1723174244795,-500.0,0.00024109,5]
[334527863,1723174244804,-500.0,0.00024109,5]
[334527865,1723174244813,-500.0,0.00024109,5]
[334527867,1723174244823,-500.4179609,0.00024109,5]
[334527869,1723174244833,-500.0,0.00024109,5]
[334527871,1723174244843,-500.0,0.00024109,5]
[334527872,1723174244852,-500.0,0.00024109,5]
[334527873,1723174244862,-500.0,0.00024109,5]
[334527874,1723174244871,-500.0,0.00024109,5]
[334527875,1723174244880,-500.0,0.00024109,5]
[334527876,1723174244890,-500.0,0.00024109,5]
[334527877,1723174244899,-520.13581599,0.00024109,5]
[334527878,1723174244908,-500.09845517,0.00024109,5]
[334527879,1723174244918,-500.0,0.00024109,5]
[334527880,1723174244927,-500.0,0.00024109,5]
[334527881,1723174244936,-500.0,0.00024109,5]
[334527882,1723174244946,-500.0,0.00024109,5]
[334527883,1723174244959,-500.0,0.00024109,5]
[334527884,1723174244968,-1307.04,0.00024109,5]
[334527885,1723174244977,-500.0,0.00024109,5]
[334527886,1723174244987,-1307.04,0.00024109,5]
[334527887,1723174244997,-1307.04,0.00024109,5]
[334527888,1723174245006,-1307.04,0.00024109,5]
[334527889,1723174245016,-1307.04,0.00024109,5]
[334527890,1723174245026,-500.0,0.00024109,5]
[334527891,1723174245035,-500.0,0.00024109,5]
[334527892,1723174245045,-500.0,0.00024109,5]
[334527893,1723174245054,-500.0,0.00024109,5]
[334527894,1723174245064,-500.0,0.00024109,5]
[334527895,1723174245073,-500.0,0.00024109,5]
[334527896,1723174245083,-2790.8,0.00024109,5]
[334527897,1723174245092,-2790.8,0.00024109,5]
[334527898,1723174245101,-2790.8,0.00024109,5]
[334527900,1723174245111,-500.0,0.00024109,5]
[334527902,1723174245120,-500.0,0.00024109,5]
[334527904,1723174245130,-500.0,0.00024109,5]
[334527906,1723174245138,-500.0,0.00024109,5]
[334527907,1723174245148,-1023.32,0.00024109,5]
[334527908,1723174245157,-1023.32,0.00024109,5]
[334527909,1723174245166,-1023.32,0.00024109,5]
[334527910,1723174245175,-1023.32,0.00024109,5]
[334527911,1723174245185,-1023.32,0.00024109,5]
[334527912,1723174245194,-500.0,0.00024109,5]
[334527913,1723174245204,-500.0,0.00024109,5]
[334527914,1723174245216,-500.0,0.00024109,5]
[334527915,1723174245225,-500.0,0.00024109,5]
[334527916,1723174245234,-500.0,0.00024109,5]
[334527917,1723174245244,-500.0,0.00024109,5]
[334527918,1723174245253,-500.0,0.00024109,5]
[334527919,1723174245263,-500.0,0.00024109,5]
[334527920,1723174245273,-500.0,0.00024109,5]
[334527921,1723174245283,-500.0,0.00024109,5]
[334527922,1723174245292,-500.0,0.00024109,5]
[334527923,1723174245302,-500.0,0.00024109,5]
[334527924,1723174245311,-441.99542145,0.00024109,5]
[334527925,1723174245321,-500.0,0.00024109,5]
[334527926,1723174245330,-500.0,0.00024109,5]
[334527927,1723174245339,-936.55,0.00024109,5]
[334527928,1723174245348,-501.49,0.00024109,5]
[334527929,1723174245359,-500.0,0.00024109,5]
[334527930,1723174245368,-936.55,0.00024109,5]
[334527931,1723174245380,-936.55,0.00024109,5]
[334527932,1723174245390,-501.49,0.00024109,5]
[334527933,1723174245400,-501.49,0.00024109,5]
[334527934,1723174245409,-500.0,0.00024109,5]
[334527936,1723174245419,-500.0,0.00024109,5]
[334527937,1723174245429,-500.0,0.00024109,5]
[334527938,1723174245439,-511.08,0.00024109,5]
[334527939,1723174245449,-511.08,0.00024109,5]
[334527940,1723174245460,-511.08,0.00024109,5]
[334527941,1723174245470,-511.08,0.00024109,5]
[334527942,1723174245483,-511.08,0.00024109,5]
[334527943,1723174245493,-500.0,0.00024109,5]
[334527944,1723174245503,-500.0,0.00024109,5]
[334527945,1723174245512,-500.0,0.00024109,5]
[334527946,1723174245522,-529.93,0.00024109,5]
[334527947,1723174245533,-529.93,0.00024109,5]